bitfinex-derivatives/quotes_BTCF0:USTF0_20250427
["timestamp","ask_amount","ask_price","bid_price","bid_amount"]
[1745788150259,0.2766089,94261.0,94260.0,0.001]
[1745788154163,0.2766089,94261.0,94260.0,0.121]
[1745788156161,0.2766089,94261.0,94260.0,0.001]
[1745788163171,0.2766089,94261.0,94260.0,0.121]
[1745788164174,0.2766089,94261.0,94260.0,0.001]
[1745788165067,0.2766089,94261.0,94260.0,0.121]
[1745788169274,0.2121156,94258.0,94257.0,0.2446177]
[1745788170175,0.2732156,94258.0,94257.0,0.3646177]
[1745788170473,0.2742156,94258.0,94257.0,0.3656177]
[1745788171674,0.2752156,94258.0,94257.0,0.3656177]
[1745788172176,0.2752156,94258.0,94257.0,0.2456177]
[1745788173277,0.2742156,94258.0,94257.0,0.2446177]
[1745788173576,0.2752156,94258.0,94257.0,0.2456177]
[1745788174176,0.2752156,94258.0,94257.0,0.3656177]
[1745788174371,0.2742156,94258.0,94257.0,0.3656177]
[1745788174671,0.2752156,94258.0,94257.0,0.3656177]
[1745788178065,0.2752156,94258.0,94257.0,0.2456177]
[1745788179074,0.2742156,94258.0,94257.0,0.3656177]
[1745788179274,0.2752156,94258.0,94257.0,0.3656177]
[1745788181078,0.2742156,94258.0,94257.0,0.3656177]
[1745788181282,0.2752156,94258.0,94257.0,0.3656177]
[1745788182282,0.2742156,94258.0,94257.0,0.3656177]
[1745788182476,0.2752156,94258.0,94257.0,0.3656177]
[1745788183278,0.2752156,94258.0,94257.0,0.2456177]
[1745788183677,0.2752156,94258.0,94257.0,0.0335]
[1745788184078,0.2752156,94258.0,94257.0,0.1535]
[1745788185077,0.2752156,94258.0,94257.0,0.0335]
[1745788186885,0.2742156,94258.0,94257.0,0.0335]
[1745788187085,0.2762156,94258.0,94257.0,0.0335]
[1745788187279,0.2762156,94258.0,94257.0,0.0325]
[1745788190096,0.2742156,94258.0,94257.0,0.0325]
[1745788190394,0.2752156,94258.0,94257.0,0.0325]
[1745788190602,0.2762156,94258.0,94257.0,0.0325]
[1745788193801,0.2742156,94258.0,94257.0,0.0325]
[1745788194002,0.2762156,94258.0,94257.0,0.0325]
[1745788199607,0.0641,94258.0,94252.0,0.16181184]
[1745788199789,0.5729269,94253.0,94252.0,0.16181184]
[1745788200596,0.6361269,94253.0,94252.0,0.16181184]
[1745788201093,0.6371269,94253.0,94252.0,0.16181184]
[1745788201495,0.6391269,94253.0,94252.0,0.16181184]
[1745788201700,0.6411269,94253.0,94252.0,0.16181184]
[1745788202109,0.7611269,94253.0,94252.0,0.16181184]
[1745788203203,0.6391269,94253.0,94252.0,0.16181184]
[1745788203407,0.6411269,94253.0,94252.0,0.16181184]
[1745788204001,0.2121381,94248.0,94247.0,0.01343402]
[1745788204906,0.2755381,94248.0,94247.0,0.01343402]
[1745788206003,0.2775381,94248.0,94247.0,0.01343402]
[1745788206405,0.2785381,94248.0,94247.0,0.01343402]
[1745788213209,0.2785381,94248.0,94247.0,0.13343402]
[1745788214198,0.2785381,94248.0,94247.0,0.01343402]
[1745788215214,0.2785381,94248.0,94247.0,0.13343402]
[1745788216207,0.2785381,94248.0,94247.0,0.01343402]
[1745788221115,0.2785381,94248.0,94247.0,0.13343402]
[1745788222209,0.2785381,94248.0,94247.0,0.01343402]
[1745788225116,0.2785381,94248.0,94247.0,0.13343402]
[1745788226213,0.2785381,94248.0,94247.0,0.01343402]
[1745788228119,0.2785381,94248.0,94247.0,0.04583402]
[1745788229207,0.2785381,94248.0,94247.0,0.16583402]
[1745788243216,0.3985381,94248.0,94247.0,0.04583402]
[1745788259334,0.4294381,94248.0,94247.0,0.04583402]
[1745788264221,0.51044684,94248.0,94247.0,0.04583402]
[1745788268728,0.4294381,94248.0,94247.0,0.04583402]
[1745788274241,0.3094381,94248.0,94247.0,0.16583402]
[1745788278538,0.39044684,94248.0,94247.0,0.16583402]
[1745788283240,0.39044684,94248.0,94247.0,0.04583402]
[1745788284146,0.39044684,94248.0,94247.0,0.16583402]
[1745788286340,0.39044684,94248.0,94247.0,0.04583402]
[1745788288242,0.39044684,94248.0,94247.0,0.16583402]
[1745788289244,0.3094381,94248.0,94247.0,0.16583402]
[1745788290744,0.3094381,94248.0,94247.0,0.13343402]
[1745788303252,0.3094381,94248.0,94247.0,0.01343402]
[1745788303450,0.39044684,94248.0,94247.0,0.01343402]
[1745788304155,0.39044684,94248.0,94247.0,0.13343402]
[1745788306766,0.3094381,94248.0,94247.0,0.13343402]
[1745788310165,0.39044684,94248.0,94247.0,0.13343402]
[1745788312169,0.39044684,94248.0,94247.0,0.01343402]
[1745788313166,0.39044684,94248.0,94247.0,0.13343402]
[1745788313863,0.38944684,94248.0,94247.0,0.13343402]
[1745788314068,0.39044684,94248.0,94247.0,0.13343402]
[1745788318265,0.39044684,94248.0,94247.0,0.01343402]
[1745788319164,0.39044684,94248.0,94247.0,0.13343402]
[1745788319756,0.38944684,94248.0,94247.0,0.13343402]
[1745788319959,0.38844684,94248.0,94247.0,0.13343402]
[1745788320261,0.39044684,94248.0,94247.0,0.13343402]
[1745788320567,0.38944684,94248.0,94247.0,0.13343402]
[1745788320873,0.39044684,94248.0,94247.0,0.13343402]
[1745788327172,0.39044684,94248.0,94247.0,0.16493402]
[1745788331164,0.39044684,94248.0,94247.0,0.04493402]
[1745788333166,0.39044684,94248.0,94247.0,0.16493402]
[1745788334381,0.3094381,94248.0,94247.0,0.16493402]
[1745788345588,0.39044684,94248.0,94247.0,0.16493402]
[1745788345988,0.38944684,94248.0,94247.0,0.16493402]
[1745788346191,0.39044684,94248.0,94247.0,0.16493402]
[1745788357193,0.39044684,94248.0,94247.0,0.04493402]
[1745788358287,0.39044684,94248.0,94247.0,0.16493402]
[1745788359095,0.39044684,94248.0,94247.0,0.04493402]
[1745788360190,0.39044684,94248.0,94247.0,0.16493402]
[1745788361593,0.38944684,94248.0,94247.0,0.16493402]
[1745788361799,0.39044684,94248.0,94247.0,0.16493402]
[1745788367303,0.39044684,94248.0,94247.0,0.04493402]
[1745788368301,0.39044684,94248.0,94247.0,0.16493402]
[1745788371199,0.39044684,94248.0,94247.0,0.04493402]
[1745788374195,0.39044684,94248.0,94247.0,0.16493402]
[1745788403221,0.39044684,94248.0,94247.0,0.04493402]
[1745788405214,0.39044684,94248.0,94247.0,0.16493402]
[1745788406612,0.3094381,94248.0,94247.0,0.16493402]
[1745788407321,0.3094381,94248.0,94247.0,0.04493402]
[1745788410223,0.3094381,94248.0,94247.0,0.16493402]
[1745788413231,0.3094381,94248.0,94247.0,0.04493402]
[1745788414234,0.3094381,94248.0,94247.0,0.16493402]
[1745788418835,0.39046721,94248.0,94247.0,0.16493402]
[1745788423232,0.39046721,94248.0,94247.0,0.04493402]
[1745788424232,0.39046721,94248.0,94247.0,0.16493402]
[1745788425155,0.39046721,94248.0,94247.0,0.04493402]
[1745788425652,0.3094381,94248.0,94247.0,0.04493402]
[1745788425948,0.3094381,94248.0,94247.0,0.40573402]
[1745788426249,0.3094381,94248.0,94247.0,0.52573402]
[1745788428153,0.3094381,94248.0,94247.0,0.40573402]
[1745788429054,0.3094381,94248.0,94247.0,0.04493402]
[1745788429353,0.3094381,94248.0,94247.0,0.16493402]
[1745788436553,0.39043796,94248.0,94247.0,0.16493402]
[1745788440250,0.28440386,94248.0,94233.0,0.16181184]
[1745788440451,0.2121697,94234.0,94233.0,0.16181184]
[1745788440651,0.5729697,94234.0,94233.0,0.16181184]
[1745788441342,1.2570697,94234.0,94233.0,0.16181184]
[1745788441549,1.2580697,94234.0,94233.0,0.16181184]
[1745788442554,1.2580697,94234.0,94233.0,0.16958696]
[1745788443749,1.2590697,94234.0,94233.0,0.16958696]
[1745788445165,1.2590697,94234.0,94233.0,0.00777512]
[1745788445460,1.2590697,94234.0,94229.0,0.0311]
[1745788445461,0.2121787,94230.0,94229.0,0.0311]
[1745788446154,0.3321787,94230.0,94229.0,0.0311]
[1745788446349,0.3972787,94230.0,94229.0,0.0311]
[1745788446553,0.3982787,94230.0,94229.0,0.0311]
[1745788448049,0.3982787,94230.0,94229.0,0.03909795]
[1745788448254,0.3992787,94230.0,94229.0,0.03909795]
[1745788449260,0.2792787,94230.0,94229.0,0.03909795]
[1745788450057,0.3992787,94230.0,94229.0,0.03909795]
[1745788452262,0.2792787,94230.0,94229.0,0.03909795]
[1745788454167,0.3992787,94230.0,94229.0,0.03909795]
[1745788458161,0.2782787,94230.0,94229.0,0.03909795]
[1745788458362,0.2792787,94230.0,94229.0,0.03909795]
[1745788458564,0.2459787,94230.0,94229.0,0.03909795]
[1745788459570,0.2459787,94230.0,94229.0,0.04209795]
[1745788460061,0.2449787,94230.0,94229.0,0.03909795]
[1745788460262,0.2459787,94230.0,94229.0,0.04209795]
[1745788460468,0.2459787,94230.0,94229.0,0.25427885]
[1745788461963,0.2459787,94230.0,94229.0,0.04209795]
[1745788464160,0.2459787,94230.0,94229.0,0.03909795]
[1745788464161,0.2449787,94230.0,94229.0,0.03909795]
[1745788464359,0.2469787,94230.0,94229.0,0.04109795]
[1745788467966,0.2469787,94230.0,94229.0,0.10739795]
[1745788468167,0.3669787,94230.0,94229.0,0.10739795]
[1745788469075,0.2469787,94230.0,94229.0,0.10739795]
[1745788470273,0.2459787,94230.0,94229.0,0.10639795]
[1745788470474,0.2469787,94230.0,94229.0,0.10739795]
[1745788470978,0.2449787,94230.0,94229.0,0.10639795]
[1745788471174,0.2469787,94230.0,94229.0,0.10739795]
[1745788471572,0.2449787,94230.0,94229.0,0.10639795]
[1745788471778,0.2459787,94230.0,94229.0,0.10639795]
[1745788472078,0.2469787,94230.0,94229.0,0.10739795]
[1745788472569,0.2770787,94230.0,94229.0,0.10639795]
[1745788472875,0.2780787,94230.0,94229.0,0.10739795]
[1745788481063,0.2780787,94230.0,94229.0,0.07419795]
[1745788484280,0.2780787,94230.0,94229.0,0.28637885]
[1745788484465,0.2780787,94230.0,94229.0,0.07419795]
[1745788486174,0.2780787,94230.0,94229.0,0.04109795]
[1745788486578,0.2780787,94230.0,94229.0,0.25327885]
[1745788487772,0.2780787,94230.0,94229.0,0.04109795]
[1745788500781,0.2780787,94230.0,94229.0,0.25327885]
[1745788501483,0.2780787,94230.0,94229.0,0.04109795]
[1745788503088,0.3980787,94230.0,94229.0,0.04109795]
[1745788504901,0.5042027,94230.0,94229.0,0.00999795]
[1745788505080,0.2122012,94220.0,94219.0,0.11070228]
[1745788505285,0.2122057,94218.0,94217.0,3e-08]
[1745788505687,0.31834171,94218.0,94217.0,3e-08]
[1745788505983,0.38014171,94218.0,94217.0,3e-08]
[1745788506188,1.00014171,94218.0,94217.0,3e-08]
[1745788507083,1.00014171,94218.0,94205.0,0.06404]
[1745788507084,0.2122169,94213.0,94205.0,0.06404]
[1745788507394,0.2122169,94213.0,94203.0,0.26991494]
[1745788508084,0.2740169,94213.0,94203.0,0.26991494]
[1745788508490,0.2750169,94213.0,94212.0,0.2178475]
[1745788508691,0.2750169,94213.0,94212.0,0.002]
[1745788508885,0.2760169,94213.0,94212.0,0.003]
[1745788509392,0.2760169,94213.0,94212.0,0.22313802]
[1745788509689,0.002,94213.0,94212.0,0.2152192]
[1745788509886,0.002,94213.0,94212.0,0.32929077]
[1745788510194,0.0053,94222.0,94221.0,0.2121989]
[1745788510387,0.2121967,94222.0,94221.0,0.6370389]
[1745788510794,0.34719115,94224.0,94223.0,0.2121944]
[1745788511188,0.13499785,94224.0,94223.0,0.3321944]
[1745788511387,0.13499785,94224.0,94223.0,0.3963944]
[1745788511694,0.34719005,94224.0,94223.0,0.3963944]
[1745788512086,0.2121922,94224.0,94223.0,0.3963944]
[1745788512991,0.001,94224.0,94223.0,0.3963944]
[1745788513198,0.002,94224.0,94223.0,0.3973944]
[1745788513590,0.2141922,94224.0,94223.0,0.40806005]
[1745788514092,0.2131922,94224.0,94223.0,0.40806005]
[1745788514297,0.2141922,94224.0,94223.0,0.40806005]
[1745788514595,0.2131922,94224.0,94223.0,0.40806005]
[1745788514787,0.2141922,94224.0,94223.0,0.40906005]
[1745788515592,0.2131922,94224.0,94223.0,0.40706005]
[1745788515896,0.2141922,94224.0,94223.0,0.41006005]
[1745788516393,0.2131922,94224.0,94223.0,0.40706005]
[1745788516696,0.2141922,94224.0,94223.0,0.41006005]
[1745788517200,0.2131922,94224.0,94223.0,0.41006005]
[1745788517498,0.2141922,94224.0,94223.0,0.41006005]
[1745788517899,0.2141922,94224.0,94223.0,0.41106005]
[1745788518295,0.2131922,94224.0,94223.0,0.41006005]
[1745788518506,0.2141922,94224.0,94223.0,0.41106005]
[1745788518695,0.2141922,94224.0,94223.0,0.47510005]
[1745788519798,0.2141922,94224.0,94223.0,0.47410005]
[1745788522900,0.0053,94228.0,94223.0,0.61803765]
[1745788523201,0.2652039,94242.0,94241.0,0.2121516]
[1745788523402,0.3279039,94242.0,94241.0,0.2761916]
[1745788524199,0.3279039,94242.0,94241.0,0.3961916]
[1745788524897,0.3289039,94242.0,94241.0,0.3981916]
[1745788526106,0.2758638,94242.0,94241.0,0.3981916]
[1745788526310,0.2788638,94242.0,94241.0,0.3981916]
[1745788526612,0.0667,94242.0,94241.0,0.3981916]
[1745788526822,0.0647,94242.0,94241.0,0.3981916]
[1745788527215,0.0647,94242.0,94241.0,0.3991916]
[1745788528014,0.2768516,94242.0,94241.0,0.3991916]
[1745788531022,0.2758516,94242.0,94241.0,0.3961916]
[1745788531214,0.2768516,94242.0,94241.0,0.3981916]
[1745788531821,0.2768516,94242.0,94241.0,0.3991916]
[1745788532323,0.0334,94242.0,94241.0,0.3991916]
[1745788532522,0.0052,94248.0,94247.0,0.2121404]
[1745788532923,0.0052,94248.0,94247.0,0.3182444]
[1745788533117,0.0052,94248.0,94247.0,0.4382444]
[1745788533512,0.0052,94248.0,94247.0,0.4696444]
[1745788533811,0.0062,94248.0,94247.0,0.4696444]
[1745788534220,0.0072,94248.0,94247.0,0.4706444]
[1745788534412,0.0072,94248.0,94247.0,0.8314444]
[1745788534920,0.0062,94248.0,94247.0,0.8304444]
[1745788535123,0.0072,94248.0,94247.0,0.8344444]
[1745788535313,0.0332,94258.0,94257.0,0.2121179]
[1745788535514,0.08072858,94266.0,94265.0,0.2120999]
[1745788535714,0.08072858,94266.0,94265.0,0.5728999]
[1745788536107,0.242594,94269.0,94268.0,0.2120931]
[1745788536311,0.242594,94269.0,94268.0,0.22013032]
[1745788537110,0.242594,94269.0,94268.0,0.34013032]
[1745788537417,0.243594,94269.0,94268.0,0.38447862]
[1745788538011,0.243594,94269.0,94268.0,0.38547862]
[1745788538714,0.243594,94269.0,94268.0,0.38447862]
[1745788538920,0.243594,94269.0,94268.0,0.38547862]
[1745788543317,0.243594,94269.0,94268.0,0.26547862]
[1745788543817,0.243594,94269.0,94268.0,0.62627862]
[1745788544521,0.243594,94269.0,94268.0,0.26547862]
[1745788544718,0.243594,94269.0,94268.0,0.59377862]
[1745788557622,0.243594,94269.0,94268.0,0.23297862]
[1745788559518,0.243594,94269.0,94268.0,0.02088552]
[1745788560023,0.243594,94269.0,94268.0,0.23297862]
[1745788561029,0.243594,94269.0,94268.0,0.26597862]
[1745788564426,0.243594,94269.0,94268.0,0.05388552]
[1745788565928,0.243594,94269.0,94268.0,0.26597862]
[1745788566633,0.213094,94269.0,94268.0,0.26597862]
[1745788566936,0.213094,94269.0,94268.0,0.29787862]
[1745788567329,0.0013,94271.0,94270.0,0.2120886]
[1745788567832,0.0013,94271.0,94270.0,0.44750459]
[1745788568139,0.0013,94271.0,94270.0,0.56750459]
[1745788569041,0.0033,94271.0,94270.0,0.56850459]
[1745788569229,0.2153864,94271.0,94270.0,0.56850459]
[1745788573143,0.0033,94271.0,94270.0,0.56850459]
[1745788574853,0.2153864,94271.0,94270.0,0.56850459]
[1745788577348,0.2153864,94271.0,94270.0,0.4624286]
[1745788577549,0.2153864,94271.0,94270.0,0.56850459]
[1745788578043,0.2153864,94271.0,94270.0,0.8232286]
[1745788579743,0.2153864,94271.0,94270.0,0.4624286]
[1745788579940,0.2153864,94271.0,94270.0,0.8232286]
[1745788582042,0.2153864,94271.0,94270.0,0.7589886]
[1745788582239,0.2153864,94271.0,94270.0,0.8232286]
[1745788584346,0.2153864,94271.0,94270.0,0.7032286]
[1745788585147,0.2153864,94271.0,94270.0,0.8232286]
[1745788587246,0.2153864,94271.0,94270.0,0.7032286]
[1745788587443,0.2457864,94271.0,94270.0,0.7032286]
[1745788602454,0.2457864,94271.0,94270.0,0.6389886]
[1745788602756,0.2457864,94271.0,94270.0,0.7029086]
[1745788605160,0.2457864,94271.0,94270.0,0.6710086]
[1745788606660,0.2457864,94271.0,94270.0,0.6730086]
[1745788606862,0.2447864,94271.0,94270.0,0.6730086]
[1745788607062,0.2457864,94271.0,94270.0,0.6760086]
[1745788607656,0.2447864,94271.0,94270.0,0.6730086]
[1745788607856,0.2457864,94271.0,94270.0,0.6760086]
[1745788608464,0.2447864,94271.0,94270.0,0.6730086]
[1745788608661,0.2457864,94271.0,94270.0,0.6750086]
[1745788611169,0.2457864,94271.0,94270.0,0.7950086]
[1745788616962,0.2457864,94271.0,94270.0,0.4342086]
[1745788617168,0.2457864,94271.0,94270.0,0.7950086]
[1745788617872,0.2457864,94271.0,94270.0,0.4342086]
[1745788618164,0.2457864,94271.0,94270.0,0.7950086]
[1745788618558,0.0337,94271.0,94270.0,0.7950086]
[1745788619068,0.0666,94271.0,94270.0,0.7950086]
[1745788619968,0.0666,94271.0,94270.0,0.4342086]
[1745788620166,0.0666,94271.0,94270.0,0.7950086]
[1745788620561,0.2786864,94271.0,94270.0,0.7950086]
[1745788621059,0.2786864,94271.0,94270.0,0.6750086]
[1745788642070,0.0666,94271.0,94270.0,0.6750086]
[1745788642400,0.2786864,94271.0,94270.0,0.6750086]
[1745788642980,0.0666,94271.0,94270.0,0.6750086]
[1745788643278,0.0666,94271.0,94270.0,0.7950086]
[1745788643780,0.0337,94271.0,94270.0,0.7950086]
[1745788644177,0.0337,94271.0,94270.0,0.6750086]
[1745788645575,0.0337,94271.0,94270.0,0.8908561]
[1745788647391,0.0052,94278.0,94277.0,0.2120729]
[1745788647689,0.0052,94278.0,94277.0,0.6728729]
[1745788648284,0.0052,94278.0,94277.0,0.8235729]
[1745788648676,0.0062,94278.0,94277.0,0.8255729]
[1745788649885,0.0072,94278.0,94277.0,0.8275729]
[1745788650080,0.0062,94278.0,94277.0,0.8560729]
[1745788650281,0.0062,94278.0,94277.0,0.7370729]
[1745788650485,0.0072,94278.0,94277.0,0.7390729]
[1745788651988,0.0392,94278.0,94277.0,0.7390729]
[1745788654090,0.0392,94278.0,94277.0,0.8590729]
[1745788658290,0.0392,94278.0,94277.0,0.7390729]
[1745788658491,0.0392,94278.0,94277.0,1.0998729]
[1745788659088,0.0392,94278.0,94277.0,1.0386729]
[1745788659277,0.0392,94278.0,94277.0,1.0025129]
[1745788659482,0.0392,94278.0,94277.0,0.9386729]
[1745788659683,0.0392,94278.0,94277.0,1.0025129]
[1745788660393,0.1592,94278.0,94277.0,1.16446453]
[1745788661093,0.0392,94278.0,94277.0,1.16446453]
[1745788663094,0.1592,94278.0,94277.0,1.16446453]
[1745788664189,0.1592,94278.0,94277.0,1.0025129]
[1745788671597,0.1592,94278.0,94277.0,1.16446453]
[1745788674589,0.1592,94278.0,94277.0,0.80366453]
[1745788674788,0.1592,94278.0,94277.0,0.6417129]
[1745788674988,0.1592,94278.0,94277.0,0.6739129]
[1745788680590,0.1592,94278.0,94277.0,0.6417129]
[1745788680796,0.3712706,94278.0,94277.0,0.6417129]
[1745788681100,0.1592,94278.0,94277.0,0.6417129]
[1745788681797,0.1272,94278.0,94277.0,0.7051129]
[1745788681992,0.1272,94278.0,94277.0,0.7376129]
[1745788682202,0.0072,94278.0,94277.0,1.07367298]
[1745788683198,0.0072,94278.0,94277.0,0.95367298]
[1745788683801,0.0072,94278.0,94277.0,0.95467298]
[1745788684102,0.0072,94278.0,94277.0,1.07467298]
[1745788685195,0.0072,94278.0,94277.0,0.95467298]
[1745788685394,0.0072,94278.0,94277.0,1.13067298]
[1745788685604,0.0072,94278.0,94277.0,0.9146129]
[1745788688308,0.0072,94278.0,94277.0,1.0346129]
[1745788690107,0.0072,94278.0,94277.0,0.9146129]
[1745788693705,0.0072,94278.0,94277.0,1.2754129]
[1745788697510,0.2133199,94301.0,94277.0,1.06334]
[1745788697714,0.0543047,94301.0,94298.0,0.2120257]
[1745788698013,0.29275198,94299.0,94298.0,0.2758657]
[1745788698212,0.41275198,94299.0,94298.0,0.2758657]
[1745788699217,0.35535198,94299.0,94298.0,0.2758657]
[1745788699413,0.35735198,94299.0,94298.0,0.2768657]
[1745788699620,0.35935198,94299.0,94298.0,0.2768657]
[1745788700217,0.47935198,94299.0,94298.0,0.2768657]
[1745788700913,0.47835198,94299.0,94298.0,0.2758657]
[1745788701221,0.3976234,94299.0,94298.0,0.2758657]
[1745788703117,0.2776234,94299.0,94298.0,0.2758657]
[1745788704116,0.0656,94299.0,94298.0,0.2758657]
[1745788705115,0.0656,94299.0,94298.0,0.3079657]
[1745788711122,0.0656,94299.0,94298.0,0.4279657]
[1745788712123,0.0052,94308.0,94307.0,0.2120054]
[1745788712422,0.2426874,94315.0,94314.0,0.2119897]
[1745788712618,0.2426874,94315.0,94314.0,0.2758297]
[1745788713011,0.2426874,94315.0,94314.0,0.3074297]
[1745788713211,0.3626874,94315.0,94314.0,0.3074297]
[1745788713611,0.3646874,94315.0,94314.0,0.3074297]
[1745788714215,0.3646874,94315.0,94314.0,0.31806443]
[1745788715016,0.3656874,94315.0,94314.0,0.31806443]
[1745788716015,0.4272874,94315.0,94314.0,0.31806443]
[1745788726729,0.4272874,94315.0,94314.0,0.04223473]
[1745788727032,0.4272874,94315.0,94314.0,0.07455473]
[1745788727220,0.4272874,94315.0,94314.0,0.01063473]
[1745788727417,0.4272874,94315.0,94314.0,0.06392]
[1745788728431,0.4272874,94315.0,94314.0,0.0745268]
[1745788729030,0.4272874,94315.0,94314.0,0.2865165]
[1745788747943,0.4272874,94315.0,94314.0,0.3195165]
[1745788749833,0.3653874,94315.0,94314.0,0.3195165]
[1745788750143,0.3653874,94315.0,94314.0,0.3516165]
[1745788751546,0.3349874,94315.0,94314.0,0.3516165]
[1745788762847,0.3349874,94315.0,94314.0,0.3195165]
[1745788763047,0.3349874,94315.0,94314.0,0.1074068]
[1745788763357,0.3677874,94315.0,94314.0,0.3193965]
[1745788764251,0.3677874,94315.0,94314.0,0.3519965]
[1745788769446,0.3667874,94315.0,94314.0,0.3519965]
[1745788770560,0.3657874,94315.0,94314.0,0.3519965]
[1745788778977,0.121,94315.0,94314.0,0.3519965]
[1745788779166,0.08952559,94350.0,94314.0,0.3519965]
[1745788779167,0.0853893,94329.0,94317.0,0.0529956]
[1745788779367,0.0529926,94323.0,94320.0,0.2119762]
[1745788779664,0.2119711,94323.0,94320.0,0.2119762]
[1745788779854,0.0529913,94325.0,94320.0,0.2119762]
[1745788780054,0.0529925,94323.0,94320.0,0.2119762]
[1745788780253,0.41370248,94321.0,94320.0,0.2771762]
[1745788780465,0.20172858,94321.0,94320.0,0.2771762]
[1745788780666,0.41570248,94321.0,94320.0,0.2771762]
[1745788782662,0.3349739,94321.0,94320.0,0.43932518]
[1745788784458,0.3349739,94321.0,94320.0,0.44718418]
[1745788785657,0.123,94321.0,94320.0,0.44718418]
[1745788786461,0.123,94321.0,94320.0,0.2850352]
[1745788788255,0.003,94321.0,94320.0,0.2850352]
[1745788788460,0.2149739,94321.0,94320.0,0.2850352]
[1745788789065,0.3349739,94321.0,94320.0,0.2850352]
[1745788794665,0.123,94321.0,94320.0,0.2850352]
[1745788795877,0.3349739,94321.0,94320.0,0.2850352]
[1745788796871,0.123,94321.0,94320.0,0.2850352]
[1745788797875,0.3349739,94321.0,94320.0,0.2850352]
[1745788798366,0.123,94321.0,94320.0,0.2850352]
[1745788799472,0.3349739,94321.0,94320.0,0.2850352]
[1745788801179,0.2149739,94321.0,94320.0,0.2850352]
[1745788806170,0.3653739,94321.0,94320.0,0.2850352]
[1745788809272,0.3954739,94321.0,94320.0,0.2850352]
[1745788811083,0.2754739,94321.0,94320.0,0.2850352]
[1745788812180,0.3954739,94321.0,94320.0,0.2850352]
[1745788812485,0.3954739,94321.0,94320.0,0.3488352]
[1745788814776,0.3954739,94321.0,94320.0,0.2850352]
[1745788814976,0.3954739,94321.0,94320.0,0.3488352]
[1745788815589,0.3954739,94321.0,94320.0,0.5248352]
[1745788815886,0.3954739,94321.0,94320.0,0.3488352]
[1745788818287,0.3954739,94321.0,94320.0,0.2850352]
[1745788818585,0.3954739,94321.0,94320.0,0.3488352]
[1745788819387,0.3954739,94321.0,94320.0,0.56503385]
[1745788822292,0.3954739,94321.0,94320.0,0.50123385]
[1745788822480,0.3954739,94321.0,94320.0,0.56503385]
[1745788824190,0.3954739,94321.0,94320.0,0.92583385]
[1745788826096,0.2754739,94321.0,94320.0,0.92583385]
[1745788827904,0.2754739,94321.0,94320.0,0.7096352]
[1745788829199,0.3954739,94321.0,94320.0,0.7096352]
[1745788831101,0.2754739,94321.0,94320.0,0.7096352]
[1745788832196,0.3954739,94321.0,94320.0,0.7096352]
[1745788833199,0.2754739,94321.0,94320.0,0.7096352]
[1745788843604,0.2754739,94321.0,94320.0,0.6458352]
[1745788843796,0.2754739,94321.0,94320.0,0.7096352]
[1745788844000,0.2754739,94321.0,94320.0,0.92583385]
[1745788844206,0.3954739,94321.0,94320.0,0.92583385]
[1745788846108,0.2754739,94321.0,94320.0,0.92583385]
[1745788847905,0.2754739,94321.0,94320.0,0.7096352]
[1745788849110,0.3954739,94321.0,94320.0,0.7096352]
[1745788850115,0.2754739,94321.0,94320.0,0.7096352]
[1745788853214,0.3954739,94321.0,94320.0,0.7096352]
[1745788854109,0.2754739,94321.0,94320.0,0.7096352]
[1745788860210,0.3954739,94321.0,94320.0,0.7096352]
[1745788862107,0.2754739,94321.0,94320.0,0.7096352]
[1745788863217,0.3954739,94321.0,94320.0,0.7096352]
[1745788864119,0.2754739,94321.0,94320.0,0.92583385]
[1745788867215,0.3954739,94321.0,94320.0,0.92583385]
[1745788868017,0.3954739,94321.0,94320.0,0.7096352]
[1745788868213,0.2754739,94321.0,94320.0,0.7096352]
[1745788873215,0.3954739,94321.0,94320.0,0.7096352]
[1745788875321,0.3954739,94321.0,94320.0,0.92583385]
[1745788876122,0.37062848,94321.0,94320.0,0.92583385]
[1745788877423,0.37062848,94321.0,94320.0,0.86203385]
[1745788877622,0.37062848,94321.0,94320.0,0.92583385]
[1745788877923,0.37062848,94321.0,94320.0,0.56503385]
[1745788878129,0.37062848,94321.0,94320.0,0.92583385]
[1745788878423,0.3319739,94321.0,94320.0,0.92583385]
[1745788879125,0.2119739,94321.0,94320.0,0.92583385]
[1745788882021,0.2119739,94321.0,94320.0,0.7096352]
[1745788883222,0.2978612,94324.0,94323.0,0.2119695]
[1745788884220,0.4178612,94324.0,94323.0,0.2757695]
[1745788884415,0.4178612,94324.0,94323.0,0.3379695]
[1745788884826,0.4188612,94324.0,94323.0,0.3379695]
[1745788885228,0.4208612,94324.0,94323.0,0.3379695]
[1745788892030,0.4208612,94324.0,94323.0,0.6987695]
[1745788892835,0.4208612,94324.0,94323.0,0.3379695]
[1745788893031,0.4208612,94324.0,94323.0,0.6987695]
[1745788900043,0.4208612,94324.0,94323.0,0.3379695]
[1745788900343,0.3008612,94324.0,94323.0,0.6987695]
[1745788901145,0.4208612,94324.0,94323.0,0.6987695]
[1745788904138,0.3008612,94324.0,94323.0,0.6987695]
[1745788906141,0.4208612,94324.0,94323.0,0.6987695]
[1745788914250,0.3678693,94324.0,94323.0,0.6987695]
[1745788915147,0.2478693,94324.0,94323.0,0.6987695]
[1745788916144,0.3678693,94324.0,94323.0,0.6987695]
[1745788927162,0.2478693,94324.0,94323.0,0.6987695]
[1745788927862,0.2792693,94324.0,94323.0,0.6987695]
[1745788933362,0.2792693,94324.0,94323.0,0.3379695]
[1745788933561,0.2792693,94324.0,94323.0,0.6987695]
[1745788953669,0.2792693,94324.0,94323.0,0.3379695]
[1745788953871,0.2792693,94324.0,94323.0,0.6987695]
[1745788955570,0.2792693,94324.0,94323.0,0.3379695]
[1745788955763,0.2792693,94324.0,94323.0,0.6987695]
[1745788959173,0.3992693,94324.0,94323.0,0.6987695]
[1745788960172,0.2792693,94324.0,94323.0,0.6987695]
[1745788968987,0.2792693,94324.0,94323.0,0.3379695]
[1745788969187,0.2792693,94324.0,94323.0,0.6987695]
[1745788976091,0.0359,94324.0,94323.0,0.6987695]
[1745788976386,0.003,94324.0,94323.0,0.6987695]
[1745788977778,0.2149672,94324.0,94323.0,0.6987695]
[1745788979481,0.003,94324.0,94323.0,0.6987695]
[1745788987283,0.2471672,94324.0,94323.0,0.6987295]
[1745788990391,0.0352,94324.0,94323.0,0.6987295]
[1745788992898,0.0352,94324.0,94323.0,0.3379295]
[1745788993202,0.0352,94324.0,94323.0,0.6987295]
[1745788993598,0.2471672,94324.0,94323.0,0.6987295]
[1745788997289,0.2471672,94324.0,94323.0,0.8746295]
[1745788998103,0.2471672,94324.0,94323.0,0.6987295]
[1745789004096,0.3671672,94324.0,94323.0,0.6987295]
[1745789007902,0.3671672,94324.0,94323.0,0.8487295]
[1745789012109,0.2471672,94324.0,94323.0,0.8487295]
[1745789013209,0.3671672,94324.0,94323.0,0.8487295]
[1745789013904,0.123,94324.0,94323.0,0.8487295]
[1745789014094,0.2149672,94324.0,94323.0,0.8487295]